fUST/lending_fUST_20240110
["ID","MTS","AMOUNT","RATE_DAILY","PERIOD"]
[311046285,1704889843784,-1096.31,0.00027671,2]
[311046288,1704889843796,-500.0,0.00027671,2]
[311046290,1704889843808,-500.0,0.00027671,2]
[311046292,1704889843818,-500.0,0.00027671,2]
[311046294,1704889843827,-1230.31,0.00027671,2]
[311046296,1704889843838,-500.0,0.00027671,2]
[311046298,1704889843849,-327.46387697,0.00027671,2]
[311046301,1704889843862,-500.0,0.00027671,2]
[311046302,1704889843878,-500.0,0.00027671,2]
[311046303,1704889843889,-500.0,0.00027671,2]
[311046304,1704889843901,-500.0,0.00027671,2]
[311046305,1704889843911,-500.0,0.00027671,2]
[311046306,1704889843922,-913.23,0.00027671,2]
[311046307,1704889843932,-588.77,0.00027671,2]
[311046308,1704889843943,-496.21810783,0.00027671,2]
[311046309,1704889843954,-500.0,0.00027671,2]
[311046310,1704889843966,-500.0,0.00027671,2]
[311046311,1704889843976,-1364.15,0.00027671,2]
[311046312,1704889843987,-791.61,0.00027671,2]
[311046313,1704889844000,-500.0,0.00027671,2]
[311046314,1704889844011,-507.29,0.00027671,2]
[311046315,1704889844022,-500.0,0.00027671,2]
[311046316,1704889844033,-500.0,0.00027671,2]
[311046317,1704889844044,-500.0,0.00027671,2]
[311046318,1704889844054,-500.0,0.00027671,2]
[311046319,1704889844065,-1435.88,0.00027671,2]
[311046320,1704889844076,-755.39,0.00027671,2]
[311046321,1704889844087,-500.0,0.00027671,2]
[311046322,1704889844097,-500.0,0.00027671,2]
[311046323,1704889844108,-500.0,0.00027671,2]
[311046324,1704889844119,-254.56710014,0.00027671,2]
[311046325,1704889844134,-500.0,0.00027671,2]
[311046326,1704889844145,-500.0,0.00027671,2]
[311046327,1704889844155,-500.0,0.00027671,2]
[311046328,1704889844167,-500.0,0.00027671,2]
[311046329,1704889844177,-500.0,0.00027671,2]
[311046330,1704889844187,-500.0,0.00027671,2]
[311046331,1704889844197,-500.0,0.00027671,2]
[311046332,1704889844208,-500.0,0.00027671,2]
[311046333,1704889844218,-503.46709942,0.00027671,2]
[311046334,1704889844229,-501.69216036,0.00027671,2]
[311046336,1704889844240,-510.60463476,0.00027671,2]
[311046338,1704889844251,-500.0,0.00027671,2]
[311046340,1704889844261,-302.48071035,0.00027671,2]
[311046343,1704889844272,-500.0,0.00027671,2]
[311046345,1704889844283,-500.0,0.00027671,2]
[311046347,1704889844294,-500.0,0.00027671,2]
[311046349,1704889844305,-500.0,0.00027671,2]
[311046351,1704889844316,-1219.39,0.00027671,2]
[311046352,1704889844327,-500.0,0.00027671,2]
[311046354,1704889844337,-346.47463783,0.00027671,2]
[311046356,1704889844348,-500.0,0.00027671,2]
[311046358,1704889844359,-500.0,0.00027671,2]
[311046360,1704889844370,-500.0,0.00027671,2]
[311046362,1704889844383,-500.0,0.00027671,2]
[311046364,1704889844393,-517.23126257,0.00027671,2]
[311046366,1704889844403,-500.0,0.00027671,2]
[311046369,1704889844414,-500.0,0.00027671,2]
[311046371,1704889844424,-500.0,0.00027671,2]
[311046373,1704889844435,-500.0,0.00027671,2]
[311046375,1704889844446,-500.0,0.00027671,2]
[311046377,1704889844456,-3100.58,0.00027671,2]
[311046379,1704889844466,-500.0,0.00027671,2]
[311046381,1704889844477,-500.0,0.00027671,2]
[311046383,1704889844488,-500.0,0.00027671,2]
[311046385,1704889844500,-501.38033797,0.00027671,2]
[311046387,1704889844511,-500.0,0.00027671,2]
[311046389,1704889844522,-500.0,0.00027671,2]
[311046392,1704889844533,-500.0,0.00027671,2]
[311046394,1704889844543,-500.0,0.00027671,2]
[311046396,1704889844554,-1011.15,0.00027671,2]
[311046398,1704889844564,-1223.09,0.00027671,2]
[311046400,1704889844575,-500.0,0.00027671,2]
[311046402,1704889844586,-500.0,0.00027671,2]
[311046404,1704889844596,-7306.3,0.00027671,2]
[311046406,1704889844607,-1526.14,0.00027671,2]
[311046422,1704889844753,-5240.22,0.00027671,2]
[311046424,1704889844769,-1102.13,0.00027671,2]
[311046426,1704889844780,-612.9,0.00027671,2]
[311046428,1704889844789,-7040.65,0.00027671,2]
[311046430,1704889844798,-500.0,0.00027671,2]
[311046432,1704889844808,-500.0,0.00027671,2]
[311046434,1704889844817,-500.0,0.00027671,2]
[311046436,1704889844826,-500.0,0.00027671,2]
[311046438,1704889844836,-500.0,0.00027671,2]
[311046440,1704889844845,-1697.04,0.00027671,2]
[311046442,1704889844854,-500.0,0.00027671,2]
[311046444,1704889844863,-500.0,0.00027671,2]
[311046446,1704889844876,-500.0,0.00027671,2]
[311046448,1704889844885,-502.84193222,0.00027671,2]
[311046450,1704889844894,-3255.66,0.00027671,2]
[311046451,1704889844904,-500.0,0.00027671,2]
[311046453,1704889844913,-500.0,0.00027671,2]
[311046455,1704889844922,-500.0,0.00027671,2]
[311046457,1704889844934,-500.0,0.00027671,2]
[311046459,1704889844944,-500.0,0.00027671,2]
[311046461,1704889844952,-489.54080109,0.00027671,2]
[311046463,1704889844961,-629.26,0.00027671,2]
[311046465,1704889844973,-500.0,0.00027671,2]
[311046467,1704889844987,-502.26561003,0.00027671,2]
[311046469,1704889844996,-500.0,0.00027671,2]
[311046471,1704889845007,-500.0,0.00027671,2]
[311046473,1704889845016,-506.49930172,0.00027671,2]
[311046475,1704889845025,-5191.99,0.00027671,2]
[311046477,1704889845034,-35264.62,0.00027671,2]
[311046479,1704889845044,-500.0,0.00027671,2]
[311046481,1704889845053,-15606.35,0.00027671,2]
[311046483,1704889845062,-500.0,0.00027671,2]
[311046485,1704889845071,-500.0,0.00027671,2]
[311046487,1704889845080,-511.12548671,0.00027671,2]
[311046489,1704889845089,-500.0,0.00027671,2]
[311046491,1704889845098,-1000.0,0.00027671,4]
[311046493,1704889845107,-500.0,0.00027671,2]
[311046495,1704889845116,-500.0,0.00027671,2]
[311046497,1704889845129,-265.0895561,0.00027671,2]
[311046498,1704889845138,-585.29602357,0.00027671,2]
[311046500,1704889845147,-1864.96,0.00027671,2]
[311046502,1704889845157,-1000.0,0.00027671,2]
[311046504,1704889845166,-500.0,0.00027671,2]
[311046506,1704889845175,-500.0,0.00027671,5]
[311046508,1704889845184,-513.26199714,0.00027671,2]
[311046510,1704889845193,-2356.21,0.00027671,2]
[311046512,1704889845203,-536.64,0.00027671,2]
[311046514,1704889845211,-521.58943388,0.00027671,2]
[311046516,1704889845220,-500.0,0.00027671,2]
[311046518,1704889845229,-500.0,0.00027671,2]
[311046520,1704889845237,-500.0,0.00027671,2]
[311046522,1704889845246,-500.0,0.00027671,2]
[311046524,1704889845255,-505.78714595,0.00027671,2]
[311046525,1704889845264,-500.0,0.00027671,2]
[311046527,1704889845273,-788.14,0.00027671,2]
[311046529,1704889845282,-500.0,0.00027671,2]
[311046531,1704889845291,-500.0,0.00027671,2]
[311046533,1704889845304,-302.133268,0.00027671,2]
[311046535,1704889845313,-500.0,0.00027671,2]
[311046537,1704889845322,-4003.33,0.00027671,2]
[311046539,1704889845331,-2562.5,0.00027671,2]
[311046541,1704889845340,-501.60366891,0.00027671,2]
[311046543,1704889845349,-150.6789329,0.00027671,2]
[311046545,1704889845358,-805.82,0.00027671,2]
[311046547,1704889845368,-500.0,0.00027671,2]
[311046549,1704889845380,-500.0,0.00027671,2]
[311046551,1704889845389,-792.64,0.00027671,2]
[311046553,1704889845398,-500.0,0.00027671,2]
[311046555,1704889845408,-500.0,0.00027671,2]
[311046557,1704889845417,-1189.34,0.00027671,2]
[311046559,1704889845426,-3275.78,0.00027671,2]
[311046561,1704889845435,-500.0,0.00027671,2]
[311046563,1704889845444,-500.0,0.00027671,2]
[311046565,1704889845453,-500.0,0.00027671,2]
[311046567,1704889845462,-1436.85,0.00027671,2]
[311046569,1704889845471,-500.0,0.00027671,2]
[311046571,1704889845480,-1317.23,0.00027671,2]
[311046573,1704889845489,-687.59711705,0.000277,2]
[311046575,1704889845498,-620.0090351,0.0002772,2]
[311046577,1704889845508,-500.0,0.00027808,2]
[311046579,1704889845517,-260.09927593,0.00027845,2]
[311046581,1704889845526,-5103.50495889,0.00027943,2]
[311046583,1704889845536,-243.92259179,0.00027943,2]
[311046584,1704889845546,-1533.68702657,0.00027943,2]
[311046586,1704889845556,-372.64600388,0.00027943,2]
[311046588,1704889845564,-826.22437243,0.00027943,2]
[311046590,1704889845573,-643.32630078,0.00027943,2]
[311046592,1704889845582,-155.44440773,0.00027944,2]
[311046594,1704889845591,-500.0,0.00027945,2]
[311046595,1704889845600,-500.0,0.00027945,2]
[311046597,1704889845610,-500.0,0.00027945,2]
[311046599,1704889845619,-500.0,0.00027945,2]
[311046601,1704889845633,-500.0,0.00027945,2]
[311046603,1704889845642,-590.06109959,0.00027945,2]
[311046605,1704889845651,-500.0,0.00027945,2]
[311046607,1704889845660,-500.0,0.00027945,2]
[311046609,1704889845669,-500.0,0.00027945,2]
[311046611,1704889845679,-1833.03,0.00027945,2]
[311046613,1704889845688,-500.0,0.00027945,2]
[311046615,1704889845696,-262.71124088,0.00027945,2]
[311046616,1704889845705,-500.0,0.00027945,2]
[311046618,1704889845715,-500.0,0.00027945,2]
[311046620,1704889845724,-500.0,0.00027945,2]
[311046622,1704889845734,-416.32539612,0.00027945,2]
[311046624,1704889845744,-500.0,0.00027945,2]
[311046626,1704889845753,-500.0,0.00027945,2]
[311046628,1704889845762,-500.0,0.00027945,2]
[311046630,1704889845772,-500.27922658,0.00027945,2]
[311046632,1704889845782,-229.48485561,0.00027945,2]
[311046634,1704889845791,-500.0,0.00027945,2]
[311046636,1704889845800,-500.0,0.00027945,2]
[311046638,1704889845809,-500.0,0.00027945,2]
[311046640,1704889845818,-500.0,0.00027945,2]
[311046642,1704889845827,-659.07,0.00027945,2]
[311046644,1704889845837,-500.0,0.00027945,2]
[311046645,1704889845846,-500.0,0.00027945,2]
[311046647,1704889845855,-500.0,0.00027945,2]
[311046649,1704889845865,-500.0,0.00027945,2]
[311046651,1704889845877,-500.0,0.00027945,2]
[311046653,1704889845887,-1096.31,0.00027945,2]
[311046655,1704889845896,-500.0,0.00027945,2]
[311046658,1704889845906,-500.0,0.00027945,2]
[311046660,1704889845915,-1230.31,0.00027945,2]
[311046662,1704889845924,-500.0,0.00027945,2]
[311046664,1704889845933,-500.0,0.00027945,2]
[311046666,1704889845943,-500.0,0.00027945,2]
[311046668,1704889845952,-500.0,0.00027945,2]
[311046670,1704889845961,-913.23,0.00027945,2]
[311046672,1704889845970,-588.77,0.00027945,2]
[311046674,1704889845979,-500.0,0.00027945,2]
[311046677,1704889845988,-500.0,0.00027945,2]
[311046679,1704889845997,-1364.15,0.00027945,2]
[311046681,1704889846006,-791.61,0.00027945,2]
[311046683,1704889846015,-500.0,0.00027945,2]
[311046684,1704889846024,-507.29,0.00027945,2]
[311046686,1704889846033,-333.22890279,0.00027945,2]
[311046688,1704889846042,-500.0,0.00027945,2]
[311046690,1704889846051,-500.0,0.00027945,2]
[311046692,1704889846061,-500.0,0.00027945,2]
[311046694,1704889846070,-1435.88,0.00027945,2]
[311046696,1704889846079,-755.39,0.00027945,2]
[311046698,1704889846088,-500.0,0.00027945,2]
[311046700,1704889846097,-500.0,0.00027945,2]
[311046702,1704889846106,-500.0,0.00027945,2]
[311046704,1704889846116,-500.0,0.00027945,2]
[311046707,1704889846128,-500.0,0.00027945,2]
[311046711,1704889846137,-500.0,0.00027945,2]
[311046715,1704889846147,-500.0,0.00027945,2]
[311046719,1704889846156,-500.0,0.00027945,2]
[311046723,1704889846165,-500.0,0.00027945,2]
[311046727,1704889846174,-500.0,0.00027945,2]
[311046730,1704889846183,-500.0,0.00027945,2]
[311046733,1704889846192,-500.0,0.00027945,2]
[311046736,1704889846201,-500.0,0.00027945,2]
[311046739,1704889846211,-500.0,0.00027945,2]
[311046741,1704889846221,-500.0,0.00027945,2]
[311046743,1704889846233,-509.85890304,0.00027945,2]
[311046746,1704889846243,-1219.39,0.00027945,2]
[311046749,1704889846252,-500.0,0.00027945,2]
[311046752,1704889846261,-500.0,0.00027945,2]
[311046755,1704889846270,-500.0,0.00027945,2]
[311046758,1704889846283,-500.0,0.00027945,2]
[311046761,1704889846292,-500.0,0.00027945,2]
[311046764,1704889846301,-478.04441609,0.00027945,2]
[311046766,1704889846310,-500.0,0.00027945,2]
[311046769,1704889846320,-500.0,0.00027945,2]
[311046772,1704889846329,-500.0,0.00027945,2]
[311046774,1704889846339,-500.0,0.00027945,2]
[311046777,1704889846349,-3100.58,0.00027945,2]
[311046780,1704889846358,-500.0,0.00027945,2]
[311046783,1704889846367,-500.0,0.00027945,2]
[311046786,1704889846381,-628.12312548,0.00027945,2]
[311046789,1704889846390,-500.0,0.00027945,2]
[311046792,1704889846399,-500.0,0.00027945,2]
[311046795,1704889846408,-511.74782297,0.00027945,2]
[311046798,1704889846418,-500.0,0.00027945,2]
[311046801,1704889846427,-1011.15,0.00027945,2]
[311046804,1704889846436,-1223.09,0.00027945,2]
[311046806,1704889846445,-500.0,0.00027945,2]
[311046808,1704889846455,-500.0,0.00027945,2]
[311046811,1704889846465,-7306.3,0.00027945,2]
[311046814,1704889846475,-1526.14,0.00027945,2]
[311046816,1704889846485,-5240.22,0.00027945,2]
[311046818,1704889846494,-1102.13,0.00027945,2]
[311046820,1704889846503,-612.9,0.00027945,2]
[311046822,1704889846513,-7040.65,0.00027945,2]
[311046825,1704889846522,-500.0,0.00027945,2]
[311046828,1704889846532,-500.0,0.00027945,2]
[311046831,1704889846541,-500.0,0.00027945,2]
[311046834,1704889846551,-500.0,0.00027945,2]
[311046837,1704889846561,-500.0,0.00027945,2]
[311046840,1704889846571,-1697.04,0.00027945,2]
[311046843,1704889846580,-500.0,0.00027945,2]
[311046846,1704889846589,-500.0,0.00027945,2]
[311046849,1704889846598,-500.0,0.00027945,2]
[311046851,1704889846607,-3255.66,0.00027945,2]
[311046854,1704889846617,-500.0,0.00027945,2]
[311046858,1704889846636,-500.0,0.00027945,2]
[311046860,1704889846645,-467.47072547,0.00027945,2]
[311046862,1704889846656,-500.0,0.00027945,2]
[311046863,1704889846665,-629.26,0.00027945,2]
[311046864,1704889846675,-500.0,0.00027945,2]
[311046865,1704889846684,-576.93418638,0.00027945,2]
[311046866,1704889846693,-500.0,0.00027945,2]
[311046867,1704889846702,-5191.99,0.00027945,2]
[311046868,1704889846711,-35264.62,0.00027945,2]
[311046869,1704889846720,-245.30792768,0.00027945,2]
[311046870,1704889846729,-15606.35,0.00027945,2]
[311046871,1704889846739,-500.0,0.00027945,2]
[311046872,1704889846747,-500.0,0.00027945,2]
[311046873,1704889846756,-1000.0,0.00027945,4]
[311046874,1704889846765,-500.0,0.00027945,2]
[311046875,1704889846774,-500.0,0.00027945,2]
[311046877,1704889846783,-500.0,0.00027945,2]
[311046878,1704889846792,-1864.96,0.00027945,2]
[311046880,1704889846801,-1000.0,0.00027945,2]
[311046882,1704889846810,-500.0,0.00027945,2]
[311046884,1704889846819,-500.0,0.00027945,5]
[311046886,1704889846829,-2356.21,0.00027945,2]
[311046888,1704889846838,-536.64,0.00027945,2]
[311046890,1704889846847,-500.0,0.00027945,2]
[311046892,1704889846856,-500.0,0.00027945,2]
[311046894,1704889846866,-232.3414118,0.00027945,2]
[311046896,1704889846880,-500.0,0.00027945,2]
[311046899,1704889846889,-500.0,0.00027945,2]
[311046900,1704889846899,-788.14,0.00027945,2]
[311046902,1704889846908,-500.0,0.00027945,2]
[311046904,1704889846918,-500.0,0.00027945,2]
[311046906,1704889846927,-247.12694452,0.00027945,2]
[311046923,1704889847085,-252.87305548,0.00027945,2]
[311046925,1704889847096,-4003.33,0.00027945,2]
[311046927,1704889847105,-2562.5,0.00027945,2]
[311046929,1704889847115,-805.82,0.00027945,2]
[311046931,1704889847129,-500.0,0.00027945,2]
[311046933,1704889847139,-500.0,0.00027945,2]
[311046935,1704889847149,-792.64,0.00027945,2]
[311046937,1704889847158,-500.0,0.00027945,2]
[311046939,1704889847168,-500.0,0.00027945,2]
[311046941,1704889847177,-1189.34,0.00027945,2]
[311046944,1704889847186,-3275.78,0.00027945,2]
[311046945,1704889847196,-500.0,0.00027945,2]
[311046947,1704889847205,-500.0,0.00027945,2]
[311046949,1704889847215,-500.0,0.00027945,2]
[311046952,1704889847224,-1436.85,0.00027945,2]
[311046954,1704889847234,-1317.23,0.00027945,2]
[311046956,1704889847243,-1500.0,0.00028,2]
[311046958,1704889847252,-500.0,0.00028082,2]
[311046960,1704889847262,-155.50976738,0.00028216,2]
[311046961,1704889847271,-309.62844586,0.00028217,2]
[311046963,1704889847280,-1157.7882361,0.00028218,2]
[311046977,1704889847401,-625.22902844,0.00028218,2]
[311046979,1704889847411,-1711.85701986,0.00028218,2]
[311046981,1704889847420,-469.64064105,0.00028218,2]
[311046983,1704889847430,-155.29528204,0.00028218,2]
[311046985,1704889847439,-322.26268464,0.00028218,2]
[311046987,1704889847448,-1729.67662302,0.00028218,2]
[311046989,1704889847457,-1926.81688078,0.00028218,5]
[311046991,1704889847467,-500.0,0.00028219,2]
[311046993,1704889847476,-500.0,0.00028219,2]
[311046995,1704889847485,-500.0,0.00028219,2]
[311046997,1704889847494,-500.0,0.00028219,2]
[311046999,1704889847503,-500.0,0.00028219,2]
[311047001,1704889847512,-500.0,0.00028219,2]
[311047003,1704889847521,-500.0,0.00028219,2]
[311047005,1704889847530,-1833.03,0.00028219,2]
[311047007,1704889847540,-500.0,0.00028219,2]
[311047009,1704889847550,-500.0,0.00028219,2]
[311047011,1704889847560,-500.0,0.00028219,2]
[311047013,1704889847569,-500.0,0.00028219,2]
[311047014,1704889847578,-500.0,0.00028219,2]
[311047017,1704889847588,-500.0,0.00028219,2]
[311047019,1704889847598,-500.0,0.00028219,2]
[311047020,1704889847607,-500.0,0.00028219,2]
[311047022,1704889847616,-500.0,0.00028219,2]
[311047024,1704889847627,-500.0,0.00028219,2]
[311047026,1704889847637,-659.07,0.00028219,2]
[311047028,1704889847646,-515.13168903,0.00028219,2]
[311047030,1704889847655,-500.0,0.00028219,2]
[311047032,1704889847664,-500.0,0.00028219,2]
[311047034,1704889847674,-500.0,0.00028219,2]
[311047036,1704889847684,-500.0,0.00028219,2]
[311047038,1704889847695,-1096.31,0.00028219,2]
[311047040,1704889847704,-500.0,0.00028219,2]
[311047042,1704889847713,-500.0,0.00028219,2]
[311047044,1704889847722,-1230.31,0.00028219,2]
[311047046,1704889847733,-500.0,0.00028219,2]
[311047048,1704889847749,-500.0,0.00028219,2]
[311047050,1704889847758,-500.0,0.00028219,2]
[311047052,1704889847769,-913.23,0.00028219,2]
[311047054,1704889847778,-588.77,0.00028219,2]
[311047056,1704889847789,-500.0,0.00028219,2]
[311047058,1704889847799,-500.0,0.00028219,2]
[311047060,1704889847808,-1364.15,0.00028219,2]
[311047062,1704889847817,-791.61,0.00028219,2]
[311047064,1704889847826,-515.61042052,0.00028219,2]
[311047066,1704889847835,-507.29,0.00028219,2]
[311047068,1704889847845,-500.0,0.00028219,2]
[311047070,1704889847855,-500.0,0.00028219,2]
[311047072,1704889847864,-500.0,0.00028219,2]
[311047074,1704889847876,-1435.88,0.00028219,2]
[311047076,1704889847885,-755.39,0.00028219,2]
[311047078,1704889847895,-504.63675004,0.00028219,2]
[311047080,1704889847904,-500.0,0.00028219,2]
[311047082,1704889847913,-500.0,0.00028219,2]
[311047084,1704889847922,-500.0,0.00028219,2]
[311047086,1704889847931,-500.0,0.00028219,2]
[311047088,1704889847940,-225.06263195,0.00028219,2]
[311047090,1704889847949,-500.0,0.00028219,2]
[311047092,1704889847958,-500.0,0.00028219,2]
[311047094,1704889847967,-500.0,0.00028219,2]
[311047096,1704889847976,-489.67848275,0.00028219,2]
[311047098,1704889847985,-221.44410943,0.00028219,2]
[311047100,1704889847994,-500.0,0.00028219,2]
[311047102,1704889848003,-1219.39,0.00028219,2]
[311047103,1704889848011,-500.0,0.00028219,2]
[311047105,1704889848020,-500.0,0.00028219,2]
[311047107,1704889848029,-500.0,0.00028219,2]
[311047109,1704889848038,-500.0,0.00028219,2]
[311047111,1704889848047,-500.0,0.00028219,2]
[311047113,1704889848056,-398.56874292,0.00028219,2]
[311047115,1704889848065,-500.0,0.00028219,2]
[311047117,1704889848074,-500.0,0.00028219,2]
[311047119,1704889848084,-500.0,0.00028219,2]
[311047121,1704889848092,-3100.58,0.00028219,2]
[311047123,1704889848102,-500.0,0.00028219,2]
[311047125,1704889848110,-500.0,0.00028219,2]
[311047127,1704889848119,-647.68493227,0.00028219,2]
[311047129,1704889848131,-500.0,0.00028219,2]
[311047131,1704889848140,-500.0,0.00028219,2]
[311047133,1704889848149,-1011.15,0.00028219,2]
[311047134,1704889848158,-1223.09,0.00028219,2]
[311047136,1704889848167,-500.0,0.00028219,2]
[311047138,1704889848176,-500.0,0.00028219,2]
[311047140,1704889848185,-7306.3,0.00028219,2]
[311047142,1704889848194,-1526.14,0.00028219,2]
[311047144,1704889848204,-5240.22,0.00028219,2]
[311047146,1704889848213,-1102.13,0.00028219,2]
[311047148,1704889848222,-612.9,0.00028219,2]
[311047150,1704889848231,-7040.65,0.00028219,2]
[311047152,1704889848240,-500.0,0.00028219,2]
[311047154,1704889848249,-500.0,0.00028219,2]
[311047156,1704889848259,-500.0,0.00028219,2]
[311047158,1704889848268,-500.0,0.00028219,2]
[311047160,1704889848277,-500.0,0.00028219,2]
[311047162,1704889848286,-1697.04,0.00028219,2]
[311047164,1704889848295,-500.0,0.00028219,2]
[311047166,1704889848304,-500.0,0.00028219,2]
[311047168,1704889848313,-500.0,0.00028219,2]
[311047170,1704889848322,-3255.66,0.00028219,2]
[311047172,1704889848330,-500.0,0.00028219,2]
[311047174,1704889848340,-500.0,0.00028219,2]
[311047176,1704889848351,-500.0,0.00028219,2]
[311047178,1704889848361,-629.26,0.00028219,2]
[311047180,1704889848370,-500.0,0.00028219,2]
[311047182,1704889848383,-500.0,0.00028219,2]
[311047184,1704889848392,-5191.99,0.00028219,2]
[311047186,1704889848401,-35264.62,0.00028219,2]
[311047188,1704889848410,-15606.35,0.00028219,2]
[311047190,1704889848419,-500.0,0.00028219,2]
[311047192,1704889848428,-500.0,0.00028219,2]
[311047194,1704889848437,-1000.0,0.00028219,4]
[311047196,1704889848445,-500.0,0.00028219,2]
[311047198,1704889848454,-500.0,0.00028219,2]
[311047200,1704889848464,-500.0,0.00028219,2]
[311047202,1704889848473,-1864.96,0.00028219,2]
[311047204,1704889848482,-1000.0,0.00028219,2]
[311047206,1704889848491,-500.0,0.00028219,2]
[311047208,1704889848500,-500.0,0.00028219,5]
[311047210,1704889848509,-2356.21,0.00028219,2]
[311047212,1704889848518,-536.64,0.00028219,2]
[311047213,1704889848527,-359.97101555,0.00028219,2]
[311047215,1704889848536,-500.0,0.00028219,2]
[311047218,1704889848546,-500.0,0.00028219,2]
[311047220,1704889848555,-507.56888381,0.00028219,2]
[311047222,1704889848566,-788.14,0.00028219,2]
[311047223,1704889848576,-500.0,0.00028219,2]
[311047225,1704889848585,-500.0,0.00028219,2]
[311047227,1704889848594,-500.0,0.00028219,2]
[311047229,1704889848603,-4003.33,0.00028219,2]
[311047231,1704889848612,-2562.5,0.00028219,2]
[311047233,1704889848621,-805.82,0.00028219,2]
[311047235,1704889848635,-500.0,0.00028219,2]
[311047237,1704889848644,-500.0,0.00028219,2]
[311047239,1704889848655,-792.64,0.00028219,2]
[311047241,1704889848664,-500.0,0.00028219,2]
[311047243,1704889848673,-500.0,0.00028219,2]
[311047245,1704889848682,-1189.34,0.00028219,2]
[311047247,1704889848691,-3275.78,0.00028219,2]
[311047249,1704889848700,-500.0,0.00028219,2]
[311047251,1704889848709,-500.0,0.00028219,2]
[311047253,1704889848718,-1436.85,0.00028219,2]
[311047255,1704889848726,-500.0,0.00028219,2]
[311047257,1704889848736,-157.85117269,0.0002828,2]
[311047259,1704889848745,-500.0,0.00028356,2]
[311047261,1704889848754,-204.635,0.0002843,2]
[311047263,1704889848763,-500.0,0.00028493,2]
[311047265,1704889848772,-500.0,0.00028493,2]
[311047267,1704889848781,-500.0,0.00028493,2]
[311047269,1704889848790,-500.0,0.00028493,2]
[311047271,1704889848799,-538.9415448,0.00028493,2]
[311047273,1704889848808,-500.0,0.00028493,2]
[311047275,1704889848817,-500.0,0.00028493,2]
[311047277,1704889848826,-1833.03,0.00028493,2]
[311047279,1704889848835,-500.0,0.00028493,2]
[311047281,1704889848844,-500.0,0.00028493,2]
[311047283,1704889848853,-500.0,0.00028493,2]
[311047285,1704889848863,-500.0,0.00028493,2]
[311047287,1704889848873,-500.0,0.00028493,2]
[311047289,1704889848884,-500.0,0.00028493,2]
[311047291,1704889848893,-500.0,0.00028493,2]
[311047293,1704889848902,-500.0,0.00028493,2]
[311047295,1704889848912,-500.0,0.00028493,2]
[311047297,1704889848921,-500.0,0.00028493,2]
[311047299,1704889848931,-659.07,0.00028493,2]
[311047301,1704889848940,-500.0,0.00028493,2]
[311047303,1704889848949,-500.0,0.00028493,2]
[311047305,1704889848961,-500.0,0.00028493,2]
[311047307,1704889848970,-500.0,0.00028493,2]
[311047309,1704889848979,-1096.31,0.00028493,2]
[311047311,1704889848989,-500.0,0.00028493,2]
[311047313,1704889848998,-500.0,0.00028493,2]
[311047315,1704889849007,-1230.31,0.00028493,2]
[311047317,1704889849016,-500.0,0.00028493,2]
[311047319,1704889849026,-500.0,0.00028493,2]